[Event "Maia Cup 2019"]
[Site "Tbilisi"]
[Date "2019.09.05"]
[Round "1.1"]
[White "Chanturia, Lasha"]
[Black "Jobava, Baadur"]
[Result "0-1"]
[ECO "C00"]
[WhiteElo "1723"]
[BlackElo "2617"]
[Annotator "RC"]
[PlyCount "64"]
[EventDate "2019.09.05"]
[EventType "swiss"]
[EventCountry "GEO"]
[SourceTitle "playchess.com"]
[Source "ChessBase"]
[SourceQuality "1"]
[TimeControl "900+10"]

1. e4 {[%emt 0:00:00]} e6 {[%emt 0:00:00]} 2. d4 {[%emt 0:00:00]} d5 {[%emt 0:00:00]} 3. Bd3 {[%emt 0:00:00]} dxe4 {[%emt 0:00:08]} 4. Bxe4 {[%emt 0:00:00]} Nf6 {[%emt 0:00:03]} 5. Bf3 {[%emt 0:00:00]} c5 {[%emt 0:00:13]} 6. Ne2 {[%emt 0:00:15]} Nc6 {[%emt 0:00:30]} 7. Bxc6+ {[%emt 0:01:05]} bxc6 {[%emt 0:00:03]} 8. O-O {[%emt 0:00:03]} Ba6 {[%emt 0:00:06]} 9. Re1 {[%emt 0:01:48]} Bxe2 {[%emt 0:01:12]} 10. Qxe2 {[%emt 0:00:11]} cxd4 {[%emt 0:00:04]} 11. Bg5 {[%emt 0:00:14]} Be7 {[%emt 0:00:20]} 12. Nd2 {[%emt 0:00:30]} O-O {[%emt 0:00:03]} 13. Nf3 {[%emt 0:00:19]} Qb6 {[%emt 0:00:07]} 14. Qc4 {[%emt 0:00:35]} h6 {[%emt 0:00:24]} 15. Bh4 {[%emt 0:00:15]} Qxb2 {[%emt 0:01:17]} 16. Nxd4 {[%emt 0:00:34]} Qb4 {[%emt 0:00:08]} 17. Qd3 {[%emt 0:01:18]} c5 {[%emt 0:01:36]} 18. c3 {[%emt 0:01:34]} Qa4 {[%emt 0:00:03]} 19. Nf3 {[%emt 0:00:01]} Rad8 {[%emt 0:00:51]} 20. Qe2 {[%emt 0:00:07]} Nd5 {[%emt 0:00:16]} 21. Bxe7 {[%emt 0:00:13]} Nxe7 {[%emt 0:00:03]} 22. Qe5 {[%emt 0:00:34]} Qa5 {[%emt 0:00:35]} 23. c4 {[%emt 0:00:37]} Nc6 {[%emt 0:00:17]} 24. Qe4 {[%emt 0:00:26]} Nd4 {[%emt 0:00:16]} 25. Ne5 {[%emt 0:00:17]} Rd6 {[%emt 0:00:27]} 26. g4 {[%emt 0:01:51]} Qd8 {[%emt 0:00:39]} 27. Re3 {[%emt 0:00:43]} Qa8 {[%emt 0:00:17]} 28. Qb1 {[%emt 0:01:30]} Rfd8 {[%emt 0:00:11]} 29. g5 {[%emt 0:00:55]} hxg5 {[%emt 0:00:13]} 30. Qf1 {[%emt 0:01:13]} Nc2 {[%emt 0:00:09]} 31. Rb1 {[%emt 0:01:59]} Nxe3 {[%emt 0:00:04]} 32. fxe3 {[%emt 0:00:01]} f6 {[%emt 0:00:08]} 0-1

[Event "Maia Cup 2019"]
[Site "Tbilisi"]
[Date "2019.09.05"]
[Round "1.5"]
[White "Tsomaia, Sergo"]
[Black "Fier, Alexandr"]
[Result "0-1"]
[ECO "B44"]
[WhiteElo "1779"]
[BlackElo "2549"]
[Annotator "RC"]
[PlyCount "50"]
[EventDate "2019.09.05"]
[EventType "swiss"]
[EventCountry "GEO"]
[SourceTitle "playchess.com"]
[Source "ChessBase"]
[SourceQuality "1"]
[TimeControl "900+10"]

1. e4 {[%emt 0:00:00]} c5 {[%emt 0:00:00]} 2. Nf3 {[%emt 0:00:00]} Nc6 {[%emt 0:00:00]} 3. d4 {[%emt 0:00:09]} cxd4 {[%emt 0:00:00]} 4. Nxd4 {[%emt 0:00:01]} e6 {[%emt 0:00:00]} 5. Nxc6 {[%emt 0:00:20]} bxc6 {[%emt 0:00:00]} 6. Be2 {[%emt 0:02:20]} Nf6 {[%emt 0:00:04]} 7. Nc3 {[%emt 0:00:36]} d5 {[%emt 0:00:04]} 8. exd5 {[%emt 0:00:13]} cxd5 {[%emt 0:00:02]} 9. O-O {[%emt 0:00:06]} Be7 {[%emt 0:00:14]} 10. b3 {[%emt 0:01:18]} O-O {[%emt 0:00:03]} 11. Bb2 {[%emt 0:00:00]} Bb7 {[%emt 0:00:15]} 12. Re1 {[%emt 0:01:18]} Bd6 {[%emt 0:01:43]} 13. Nb5 {[%emt 0:00:22]} Bb8 {[%emt 0:00:22]} 14. c4 {[%emt 0:00:30]} a6 {[%emt 0:00:12]} 15. Nd4 {[%emt 0:00:41]} e5 16. Nf5 {[%emt 0:00:42]} d4 {[%emt 0:00:19]} 17. f3 {[%emt 0:00:19]} Nh5 {[%emt 0:00:50]} 18. Bc1 {[%emt 0:00:45]} g6 {[%emt 0:00:56]} 19. Ng3 {[%emt 0:00:57]} Nxg3 {[%emt 0:00:04]} 20. hxg3 {[%emt 0:00:01]} e4 {[%emt 0:00:01]} 21. f4 {[%emt 0:00:57]} Ba7 {[%emt 0:02:29]} 22. Bf1 {[%emt 0:00:21]} Qd6 {[%emt 0:00:11]} 23. Bb2 {[%emt 0:03:15]} Rad8 {[%emt 0:00:06]} 24. Rc1 {[%emt 0:00:03]} d3+ {[%emt 0:00:03]} 25. Kh2 {[%emt 0:00:39]} d2 {[%emt 0:00:02]} 0-1

[Event "Maia Cup 2019"]
[Site "Tbilisi"]
[Date "2019.09.05"]
[Round "2.6"]
[White "Chkuaseli, Revaz"]
[Black "Arutinian, David"]
[Result "0-1"]
[ECO "B06"]
[WhiteElo "1882"]
[BlackElo "2551"]
[Annotator "ChessBase"]
[PlyCount "116"]
[EventDate "2019.09.05"]
[EventType "swiss"]
[EventCountry "GEO"]
[SourceTitle "playchess.com"]
[Source "ChessBase"]
[SourceQuality "1"]
[TimeControl "900+10"]

1. e4 {[%emt 0:00:00]} g6 {[%emt 0:00:10]} 2. d4 {[%emt 0:00:00]} Bg7 {[%emt 0:00:02]} 3. Nc3 {[%emt 0:00:02]} d6 {[%emt 0:00:02]} 4. Be3 {[%emt 0:00:04]} a6 {[%emt 0:00:02]} 5. Qd2 {[%emt 0:01:05]} b5 {[%emt 0:00:02]} 6. Bd3 {[%emt 0:00:06]} Bb7 {[%emt 0:00:02]} 7. a3 {[%emt 0:00:45]} Nd7 {[%emt 0:00:03]} 8. f4 {[%emt 0:00:39]} c5 {[%emt 0:00:05]} 9. Nf3 {[%emt 0:01:06]} cxd4 {[%emt 0:00:07]} 10. Bxd4 {[%emt 0:00:44]} Bxd4 {[%emt 0:00:29]} 11. Nxd4 {[%emt 0:00:02]} Ngf6 {[%emt 0:00:01]} 12. Nb3 {[%emt 0:02:23]} O-O {[%emt 0:00:26]} 13. O-O-O {[%emt 0:00:20]} Rc8 {[%emt 0:00:11]} 14. Rhe1 {[%emt 0:00:59]} e5 {[%emt 0:00:36]} 15. Bf1 {[%emt 0:01:16]} Ne8 {[%emt 0:03:08]} 16. Nd5 {[%emt 0:01:24]} Bxd5 {[%emt 0:00:13]} 17. Qxd5 {[%emt 0:00:52]} exf4 {[%emt 0:00:40]} 18. Qb7 {[%emt 0:02:41]} Qc7 {[%emt 0:00:10]} 19. Qxc7 {[%emt 0:00:02]} Rxc7 {[%emt 0:00:02]} 20. Rd2 {[%emt 0:01:19]} Ne5 {[%emt 0:00:06]} 21. h3 {[%emt 0:01:38]} h5 {[%emt 0:01:04]} 22. Red1 {[%emt 0:00:34]} f5 {[%emt 0:00:17]} 23. exf5 {[%emt 0:00:31]} Rxf5 {[%emt 0:00:02]} 24. Nd4 {[%emt 0:00:14]} Rf6 {[%emt 0:00:02]} 25. a4 Nc4 {[%emt 0:00:33]} 26. Bxc4+ {[%emt 0:00:12]} bxc4 {[%emt 0:00:07]} 27. Re1 {[%emt 0:00:14]} Kf7 {[%emt 0:00:04]} 28. Rde2 {[%emt 0:00:12]} Ng7 {[%emt 0:00:15]} 29. Nf3 {[%emt 0:00:08]} Rf5 {[%emt 0:00:22]} 30. Kb1 {[%emt 0:00:09]} g5 {[%emt 0:00:11]} 31. b4 {[%emt 0:00:12]} cxb3 {[%emt 0:00:04]} 32. cxb3 {[%emt 0:00:00]} Kf6 {[%emt 0:00:02]} 33. Kb2 {[%emt 0:00:16]} Rd5 {[%emt 0:00:20]} 34. h4 {[%emt 0:00:14]} g4 {[%emt 0:00:06]} 35. Ng5 {[%emt 0:00:12]} Re5 {[%emt 0:00:05]} 36. Ne4+ {[%emt 0:00:12]} Ke6 {[%emt 0:00:02]} 37. Ng5+ {[%emt 0:00:10]} Kf5 {[%emt 0:00:04]} 38. Rxe5+ {[%emt 0:00:12]} dxe5 {[%emt 0:00:01]} 39. Ne4 {[%emt 0:00:05]} f3 {[%emt 0:00:24]} 40. g3 {[%emt 0:00:15]} Ne8 {[%emt 0:00:18]} 41. b4 {[%emt 0:00:05]} Rc4 {[%emt 0:00:05]} 42. Nc5 {[%emt 0:00:10]} Rxb4+ {[%emt 0:00:03]} 43. Kc3 {[%emt 0:00:00]} Rd4 {[%emt 0:00:03]} 44. Nxa6 {[%emt 0:00:04]} Rxa4 {[%emt 0:00:02]} 45. Nc5 {[%emt 0:00:05]} Ra2 {[%emt 0:00:28]} 46. Nd3 {[%emt 0:00:16]} e4 {[%emt 0:00:07]} 47. Nf4 {[%emt 0:00:12]} Nf6 {[%emt 0:00:25]} 48. Kd4 {[%emt 0:00:13]} Rd2+ {[%emt 0:00:59]} 49. Ke3 {[%emt 0:00:05]} Rd7 {[%emt 0:00:06]} 50. Kf2 {[%emt 0:00:12]} Nd5 {[%emt 0:00:04]} 51. Rd1 {[%emt 0:00:27]} e3+ {[%emt 0:00:03]} 52. Ke1 {[%emt 0:00:10]} Nxf4 {[%emt 0:00:21]} 53. Rxd7 {[%emt 0:00:03]} Ng2+ {[%emt 0:00:04]} 54. Kf1 {[%emt 0:00:16]} e2+ {[%emt 0:00:03]} 55. Kg1 {[%emt 0:00:03]} e1=Q+ 56. Kh2 Nf4 {[%emt 0:00:19]} 57. Rf7+ {[%emt 0:00:25]} Kg6 {[%emt 0:00:03]} 58. Rxf4 {[%emt 0:00:03]} Qf2+ 0-1

[Event "Maia Cup 2019"]
[Site "Tbilisi"]
[Date "2019.09.05"]
[Round "3.3"]
[White "Jojua, Davit"]
[Black "Sulashvili, Malkhaz"]
[Result "1-0"]
[ECO "D00"]
[WhiteElo "2563"]
[BlackElo "2381"]
[Annotator "RC"]
[PlyCount "54"]
[EventDate "2019.09.05"]
[EventType "swiss"]
[EventCountry "GEO"]
[SourceTitle "playchess.com"]
[Source "ChessBase"]
[SourceQuality "1"]
[TimeControl "900+10"]

1. d4 {[%emt 0:00:00]} d5 {[%emt 0:00:00]} 2. Bf4 {[%emt 0:00:00]} e6 {[%emt 0:00:00]} 3. e3 {[%emt 0:00:01]} Bd6 {[%emt 0:00:00]} 4. Nf3 {[%emt 0:00:04]} Bxf4 {[%emt 0:01:56]} 5. exf4 {[%emt 0:00:02]} c5 {[%emt 0:00:02]} 6. dxc5 {[%emt 0:00:38]} Qa5+ {[%emt 0:00:06]} 7. c3 {[%emt 0:00:19]} Qxc5 {[%emt 0:00:03]} 8. Bd3 {[%emt 0:00:02]} Nf6 {[%emt 0:00:14]} 9. O-O {[%emt 0:00:05]} O-O {[%emt 0:00:06]} 10. Nbd2 {[%emt 0:00:10]} b6 {[%emt 0:00:17]} 11. Qe2 {[%emt 0:00:13]} a5 {[%emt 0:00:05]} 12. Nd4 {[%emt 0:02:08]} Ba6 {[%emt 0:01:06]} 13. Bxa6 {[%emt 0:00:53]} Nxa6 {[%emt 0:00:11]} 14. f5 {[%emt 0:00:03]} exf5 {[%emt 0:00:47]} 15. Nxf5 {[%emt 0:00:03]} a4 {[%emt 0:00:07]} 16. Rfe1 {[%emt 0:03:33]} Qc7 {[%emt 0:01:00]} 17. Qe3 {[%emt 0:00:44]} g6 {[%emt 0:02:55]} 18. Qd4 {[%emt 0:01:34]} Qd8 {[%emt 0:01:20]} 19. Ne7+ {[%emt 0:00:31]} Kg7 {[%emt 0:00:02]} 20. g4 {[%emt 0:00:03]} h6 {[%emt 0:00:58]} 21. f4 {[%emt 0:00:27]} Qd7 {[%emt 0:00:06]} 22. g5 {[%emt 0:01:48]} Qg4+ {[%emt 0:00:09]} 23. Kh1 {[%emt 0:00:10]} hxg5 {[%emt 0:00:04]} 24. Nxd5 {[%emt 0:00:07]} Rad8 {[%emt 0:01:39]} 25. Qxf6+ {[%emt 0:00:07]} Kh7 {[%emt 0:00:01]} 26. Qxd8 {[%emt 0:00:12]} Qf5 {[%emt 0:00:24]} 27. Qxg5 Nb8 1-0

[Event "Maia Cup 2019"]
[Site "Tbilisi"]
[Date "2019.09.05"]
[Round "4.7"]
[White "Charkhalashvili, Inga"]
[Black "Bechvaia, Giorgi"]
[Result "1/2-1/2"]
[ECO "D63"]
[WhiteElo "2276"]
[BlackElo "1923"]
[Annotator "NA"]
[PlyCount "126"]
[EventDate "2019.09.05"]
[EventType "swiss"]
[EventCountry "GEO"]
[SourceTitle "playchess.com"]
[Source "ChessBase"]
[SourceQuality "1"]
[TimeControl "900+10"]

1. d4 d5 2. c4 e6 3. Nc3 Nf6 4. Bg5 Be7 5. e3 O-O 6. Nf3 Nbd7 7. Rc1 b6 8. cxd5 exd5 9. Bd3 Bb7 10. O-O c5 11. dxc5 Nxc5 12. Bb1 Nce4 13. Nb5 Nxg5 14. Nxg5 g6 15. Nf3 a6 16. Nbd4 Rc8 17. Qb3 Qd6 18. Rcd1 Qb4 19. Qxb4 Bxb4 20. a3 Be7 21. Ne5 Bd6 22. Nd3 Ne4 23. f3 Nc5 24. Nf2 Rfe8 25. Rfe1 Na4 26. Rd2 Bc5 27. b4 Bd6 28. Ba2 Nc3 29. Bb3 a5 30. Nd3 Ba6 31. Kf2 Bxd3 32. Rxd3 axb4 33. axb4 Bxb4 34. Ra1 Red8 35. Ra7 Bf8 36. Rb7 Nb1 37. Nb5 Na3 38. Nxa3 Bxa3 39. Bxd5 Bc5 40. Bxf7+ Kh8 41. Bd5 Rb8 42. Rxb8 Rxb8 43. f4 Kg7 44. Kf3 Rd8 45. e4 Rd7 46. e5 h5 47. g3 Ra7 48. Bb3 Ra3 49. h3 Ra1 50. Rd7+ Kf8 51. g4 Rh1 52. Kg2 Rg1+ 53. Kh2 hxg4 54. hxg4 Rxg4 55. Rf7+ Ke8 56. Kh3 Rg1 57. Rf6 {[%emt 0:23:05]} Ke7 {[%emt 0:23:33]} 58. Bc2 Be3 59. Bb3 {[%emt 0:01:00]} b5 {[%emt 0:00:19]} 60. Re6+ {[%emt 0:00:13]} Kd7 {[%emt 0:00:14]} 61. Rd6+ {[%emt 0:00:02]} Ke7 {[%emt 0:00:02]} 62. Re6+ {[%emt 0:00:03]} Kd7 63. Rd6+ Ke8 1/2-1/2

[Event "Maia Cup 2019"]
[Site "Tbilisi"]
[Date "2019.09.06"]
[Round "5.1"]
[White "Jojua, Davit"]
[Black "Fier, Alexandr"]
[Result "0-1"]
[ECO "D48"]
[WhiteElo "2563"]
[BlackElo "2549"]
[Annotator "ChessBase"]
[PlyCount "86"]
[EventDate "2019.09.05"]
[EventType "swiss"]
[EventCountry "GEO"]
[SourceTitle "playchess.com"]
[Source "ChessBase"]
[SourceQuality "1"]
[TimeControl "900+10"]

1. d4 {[%emt 0:00:00]} Nf6 {[%emt 0:00:00]} 2. c4 {[%emt 0:00:00]} e6 {[%emt 0:00:00]} 3. Nf3 {[%emt 0:00:08]} d5 {[%emt 0:00:00]} 4. Nc3 {[%emt 0:00:36]} c6 {[%emt 0:00:00]} 5. e3 {[%emt 0:00:50]} Nbd7 {[%emt 0:00:01]} 6. Bd3 {[%emt 0:00:01]} dxc4 {[%emt 0:00:01]} 7. Bxc4 {[%emt 0:00:01]} b5 {[%emt 0:00:01]} 8. Bd3 {[%emt 0:00:02]} a6 {[%emt 0:00:21]} 9. a4 {[%emt 0:00:25]} b4 {[%emt 0:01:30]} 10. Ne4 {[%emt 0:00:01]} c5 {[%emt 0:00:04]} 11. dxc5 {[%emt 0:00:40]} Nxc5 {[%emt 0:00:11]} 12. Nxc5 {[%emt 0:00:05]} Bxc5 {[%emt 0:00:01]} 13. Qe2 {[%emt 0:00:46]} O-O {[%emt 0:01:50]} 14. O-O {[%emt 0:01:34]} Qe7 {[%emt 0:01:03]} 15. e4 {[%emt 0:00:49]} e5 {[%emt 0:00:01]} 16. Be3 {[%emt 0:01:29]} Bxe3 {[%emt 0:00:29]} 17. Qxe3 {[%emt 0:00:02]} Bg4 {[%emt 0:00:48]} 18. Nd2 {[%emt 0:02:08]} a5 {[%emt 0:00:20]} 19. Nb3 {[%emt 0:01:31]} Be6 20. Nd2 {[%emt 0:03:55]} Rfd8 {[%emt 0:00:20]} 21. Nf3 {[%emt 0:00:30]} Bg4 {[%emt 0:00:47]} 22. Bc4 {[%emt 0:01:05]} Bxf3 {[%emt 0:00:20]} 23. Qxf3 {[%emt 0:00:01]} Rd4 {[%emt 0:00:01]} 24. b3 {[%emt 0:00:09]} Rad8 {[%emt 0:00:13]} 25. Rae1 {[%emt 0:00:29]} g6 {[%emt 0:00:35]} 26. h3 {[%emt 0:00:44]} Kg7 {[%emt 0:00:02]} 27. Re3 {[%emt 0:00:20]} Nd7 {[%emt 0:00:13]} 28. Rd3 {[%emt 0:00:48]} Nf6 {[%emt 0:00:54]} 29. Re3 {[%emt 0:00:21]} h5 {[%emt 0:00:01]} 30. g3 {[%emt 0:00:12]} h4 {[%emt 0:00:04]} 31. g4 {[%emt 0:00:08]} Nh7 {[%emt 0:00:08]} 32. Rd3 {[%emt 0:00:08]} Ng5 {[%emt 0:00:03]} 33. Qe3 {[%emt 0:00:02]} Rxd3 {[%emt 0:00:18]} 34. Bxd3 {[%emt 0:00:01]} Ne6 {[%emt 0:00:01]} 35. Bc4 {[%emt 0:00:16]} Nf4 {[%emt 0:00:01]} 36. Kh2 {[%emt 0:00:01]} Rd4 {[%emt 0:00:03]} 37. Rc1 {[%emt 0:00:27]} Qd6 {[%emt 0:00:04]} 38. Bb5 {[%emt 0:00:02]} Rd2 {[%emt 0:00:29]} 39. Rc5 {[%emt 0:00:28]} Qd4 {[%emt 0:01:46]} 40. Qxd4 {[%emt 0:00:01]} exd4 {[%emt 0:00:01]} 41. Bf1 {[%emt 0:00:16]} d3 {[%emt 0:00:01]} 42. Rxa5 {[%emt 0:00:11]} Rd1 {[%emt 0:00:01]} 43. Bxd3 {[%emt 0:00:14]} Rxd3 {[%emt 0:00:01]} 0-1

[Event "Maia Cup 2019"]
[Site "Tbilisi"]
[Date "2019.09.06"]
[Round "6.2"]
[White "Maghalashvili, Davit"]
[Black "Jojua, Davit"]
[Result "1-0"]
[ECO "E67"]
[WhiteElo "2500"]
[BlackElo "2563"]
[Annotator "ChessBase"]
[PlyCount "75"]
[EventDate "2019.09.05"]
[EventType "swiss"]
[EventCountry "GEO"]
[SourceTitle "playchess.com"]
[Source "ChessBase"]
[SourceQuality "1"]
[TimeControl "900+10"]

1. Nf3 {[%emt 0:00:00]} Nf6 {[%emt 0:00:00]} 2. c4 {[%emt 0:00:00]} g6 {[%emt 0:00:00]} 3. g3 {[%emt 0:00:00]} Bg7 {[%emt 0:00:00]} 4. Bg2 {[%emt 0:00:00]} O-O {[%emt 0:00:02]} 5. O-O {[%emt 0:00:02]} d6 {[%emt 0:00:01]} 6. d4 {[%emt 0:00:02]} Nbd7 {[%emt 0:00:20]} 7. Nc3 {[%emt 0:00:04]} e5 {[%emt 0:00:03]} 8. h3 {[%emt 0:00:22]} c6 {[%emt 0:00:03]} 9. e4 {[%emt 0:00:04]} Qa5 {[%emt 0:00:37]} 10. Be3 {[%emt 0:00:49]} Re8 {[%emt 0:00:49]} 11. d5 {[%emt 0:00:19]} cxd5 {[%emt 0:00:08]} 12. cxd5 {[%emt 0:00:05]} Nc5 {[%emt 0:00:15]} 13. Nd2 {[%emt 0:00:19]} Bd7 {[%emt 0:00:07]} 14. a3 {[%emt 0:03:05]} Na4 {[%emt 0:01:22]} 15. Nxa4 {[%emt 0:00:40]} Bxa4 {[%emt 0:00:07]} 16. b3 {[%emt 0:01:50]} Bd7 {[%emt 0:00:49]} 17. Nc4 {[%emt 0:00:14]} Qa6 {[%emt 0:00:25]} 18. a4 {[%emt 0:00:05]} Rec8 {[%emt 0:03:44]} 19. Re1 {[%emt 0:00:30]} Rxc4 {[%emt 0:01:44]} 20. bxc4 {[%emt 0:01:04]} Qxc4 {[%emt 0:00:04]} 21. Qc1 {[%emt 0:01:18]} Qa6 {[%emt 0:01:27]} 22. Bf1 {[%emt 0:01:28]} Qa5 {[%emt 0:00:03]} 23. Qd2 {[%emt 0:00:14]} Qd8 {[%emt 0:00:29]} 24. Qb4 {[%emt 0:00:08]} a5 {[%emt 0:00:42]} 25. Qb1 {[%emt 0:00:42]} Qe8 {[%emt 0:00:36]} 26. Bb5 {[%emt 0:00:26]} Bxb5 {[%emt 0:00:08]} 27. axb5 {[%emt 0:00:02]} Nd7 {[%emt 0:00:16]} 28. Rc1 {[%emt 0:00:30]} b6 {[%emt 0:00:56]} 29. Rc6 {[%emt 0:00:08]} Qb8 {[%emt 0:00:03]} 30. Qc2 {[%emt 0:00:13]} Bf8 {[%emt 0:00:18]} 31. Kg2 {[%emt 0:00:38]} Nc5 {[%emt 0:00:32]} 32. Qc4 {[%emt 0:00:31]} Ra7 {[%emt 0:01:22]} 33. Rd1 {[%emt 0:00:59]} Rd7 {[%emt 0:00:16]} 34. h4 {[%emt 0:00:16]} h5 {[%emt 0:00:28]} 35. Bxc5 {[%emt 0:00:20]} dxc5 {[%emt 0:00:01]} 36. d6 {[%emt 0:00:11]} Rxd6 {[%emt 0:00:21]} 37. Rdxd6 {[%emt 0:00:05]} Bxd6 {[%emt 0:00:02]} 38. Qd5 {[%emt 0:00:03]} 1-0

[Event "Maia Cup 2019"]
[Site "Tbilisi"]
[Date "2019.09.06"]
[Round "6.6"]
[White "Purtseladze, Maka"]
[Black "Jobava, Beglar"]
[Result "0-1"]
[ECO "E00"]
[WhiteElo "2274"]
[BlackElo "2438"]
[Annotator "NA"]
[PlyCount "66"]
[EventDate "2019.09.05"]
[EventType "swiss"]
[EventCountry "GEO"]
[SourceTitle "playchess.com"]
[Source "ChessBase"]
[SourceQuality "1"]
[TimeControl "900+10"]

1. d4 {[%emt 0:00:00]} Nf6 {[%emt 0:00:00]} 2. c4 {[%emt 0:00:00]} e6 {[%emt 0:00:00]} 3. Bg5 {[%emt 0:00:15]} h6 {[%emt 0:01:11]} 4. Bxf6 {[%emt 0:00:20]} Qxf6 {[%emt 0:00:04]} 5. e4 {[%emt 0:00:10]} Bb4+ {[%emt 0:01:07]} 6. Nc3 {[%emt 0:00:02]} e5 {[%emt 0:01:57]} 7. d5 {[%emt 0:02:49]} Bxc3+ {[%emt 0:00:31]} 8. bxc3 {[%emt 0:00:01]} Na6 {[%emt 0:01:10]} 9. g3 {[%emt 0:01:21]} Nc5 {[%emt 0:00:29]} 10. Bg2 {[%emt 0:00:02]} O-O {[%emt 0:01:53]} 11. Qe2 {[%emt 0:00:59]} d6 {[%emt 0:01:28]} 12. Nf3 {[%emt 0:04:21]} Qe7 {[%emt 0:01:33]} 13. Nh4 {[%emt 0:01:34]} g5 {[%emt 0:00:07]} 14. Nf5 {[%emt 0:00:08]} Bxf5 {[%emt 0:00:06]} 15. exf5 {[%emt 0:00:01]} Qf6 {[%emt 0:00:16]} 16. Be4 {[%emt 0:01:40]} Kg7 {[%emt 0:00:02]} 17. h4 {[%emt 0:00:13]} Rh8 {[%emt 0:00:05]} 18. Kf1 {[%emt 0:00:40]} Rag8 {[%emt 0:00:02]} 19. Rb1 {[%emt 0:00:22]} h5 {[%emt 0:01:04]} 20. hxg5 {[%emt 0:02:01]} Qxg5 {[%emt 0:00:03]} 21. Rh4 {[%emt 0:00:03]} Kf6 {[%emt 0:00:21]} 22. Re1 {[%emt 0:00:26]} Nxe4 {[%emt 0:00:53]} 23. Qxe4 {[%emt 0:00:21]} Qxf5 {[%emt 0:00:02]} 24. Qxf5+ {[%emt 0:00:44]} Kxf5 {[%emt 0:00:01]} 25. Ke2 {[%emt 0:00:16]} Rg4 {[%emt 0:00:34]} 26. Reh1 {[%emt 0:00:01]} Rxh4 {[%emt 0:00:19]} 27. Rxh4 {[%emt 0:00:00]} Kg5 {[%emt 0:00:39]} 28. Ke3 {[%emt 0:00:24]} f5 {[%emt 0:00:00]} 29. Rh1 {[%emt 0:00:14]} b6 {[%emt 0:01:30]} 30. a4 {[%emt 0:00:07]} h4 {[%emt 0:00:15]} 31. gxh4+ {[%emt 0:00:14]} Rxh4 {[%emt 0:00:01]} 32. Rg1+ {[%emt 0:00:01]} Rg4 {[%emt 0:00:03]} 33. Rh1 {[%emt 0:00:17]} Rxc4 {[%emt 0:00:06]} 0-1

[Event "Maia Cup 2019"]
[Site "Tbilisi"]
[Date "2019.09.06"]
[Round "7.3"]
[White "Jobava, Beglar"]
[Black "Mikadze, Miranda"]
[Result "0-1"]
[ECO "D10"]
[WhiteElo "2438"]
[BlackElo "2279"]
[Annotator "RC"]
[PlyCount "70"]
[EventDate "2019.09.05"]
[EventType "swiss"]
[EventCountry "GEO"]
[SourceTitle "playchess.com"]
[Source "ChessBase"]
[SourceQuality "1"]
[TimeControl "900+10"]

1. d4 {[%emt 0:00:00]} d5 {[%emt 0:00:00]} 2. c4 {[%emt 0:00:00]} c6 {[%emt 0:00:00]} 3. cxd5 {[%emt 0:00:05]} cxd5 {[%emt 0:00:00]} 4. Nc3 {[%emt 0:00:05]} Nf6 {[%emt 0:00:00]} 5. Bf4 {[%emt 0:00:10]} Nc6 {[%emt 0:00:00]} 6. e3 {[%emt 0:00:08]} a6 {[%emt 0:00:13]} 7. h3 {[%emt 0:00:34]} Qb6 {[%emt 0:01:02]} 8. Bd3 {[%emt 0:02:56]} Qxb2 {[%emt 0:01:01]} 9. Nge2 {[%emt 0:00:03]} Nb4 {[%emt 0:00:42]} 10. O-O {[%emt 0:00:39]} Nxd3 {[%emt 0:00:02]} 11. Qxd3 {[%emt 0:00:04]} e6 {[%emt 0:00:17]} 12. Na4 {[%emt 0:02:50]} Qb4 {[%emt 0:00:25]} 13. Nec3 {[%emt 0:00:08]} Qa5 {[%emt 0:00:45]} 14. Nc5 {[%emt 0:04:15]} Be7 {[%emt 0:02:24]} 15. e4 {[%emt 0:02:05]} dxe4 {[%emt 0:00:58]} 16. N3xe4 {[%emt 0:00:13]} O-O {[%emt 0:00:16]} 17. Nxf6+ {[%emt 0:00:55]} Bxf6 {[%emt 0:00:06]} 18. Ne4 {[%emt 0:00:03]} Be7 {[%emt 0:00:17]} 19. Rfc1 {[%emt 0:00:13]} Qf5 {[%emt 0:00:16]} 20. Qe3 {[%emt 0:00:53]} b5 {[%emt 0:00:51]} 21. Rc7 {[%emt 0:00:11]} Bb4 {[%emt 0:01:23]} 22. Rac1 {[%emt 0:00:05]} Qd5 {[%emt 0:00:51]} 23. Nf6+ {[%emt 0:00:54]} gxf6 {[%emt 0:00:03]} 24. Qg3+ {[%emt 0:00:01]} Kh8 {[%emt 0:00:03]} 25. Bh6 {[%emt 0:00:01]} Rg8 {[%emt 0:00:29]} 26. Rxc8 {[%emt 0:00:01]} Bf8 {[%emt 0:00:28]} 27. Bxf8 {[%emt 0:01:15]} Rxg3 {[%emt 0:01:53]} 28. fxg3 {[%emt 0:00:02]} Rxc8 {[%emt 0:00:12]} 29. Rxc8 {[%emt 0:00:01]} h5 {[%emt 0:00:06]} 30. Bc5+ {[%emt 0:00:19]} Kg7 {[%emt 0:00:15]} 31. a3 {[%emt 0:00:01]} e5 {[%emt 0:00:31]} 32. dxe5 {[%emt 0:00:09]} fxe5 {[%emt 0:00:10]} 33. Bf8+ {[%emt 0:00:11]} Kg6 {[%emt 0:00:12]} 34. Be7 {[%emt 0:00:01]} Qd7 {[%emt 0:00:35]} 35. Rg8+ {[%emt 0:00:02]} Kh7 {[%emt 0:00:01]} 0-1